{"text_format":"1","workbook":"xlsx","n_sheets":1,"sheets":["Sheet1"],"not_rendered":{"charts":0,"images":1,"macros":1,"external_links":0,"defined_names":0,"comments":1,"pivot_tables":0},"unopened":[],"bounds":{"document_bytes":16777216,"sheet_cells":100000,"rows_first":2000,"rows_last":500,"rows_between":2000,"halvings":0,"cell_chars":16384,"cell_head_chars":4096},"cells_cut":0,"cells_raw":0,"read":"whole","date_system":"1900"}

{"sheet":"Sheet1","index":0,"n_rows":110,"n_cols":10,"rows_kept":110,"cut":false,"hidden":false,"merged":[]}
["プロジェクト名(ファイル名をフルパスで指定)","C:\\temp\\test.femprj",null,"このマクロの使い方",null,"注意点"]
[null,null,null,"1.プロジェクト名を指定",null,"計算方法：Rg = (r1*m1+r2*m2+…)/M"]
[null,null,null,"2.[Start]ボタンを押す",null,"重心、体積の単位はFemtetのモデリングの単位"]
[null,null,null,null,null,"全てのボディで材料(密度)を設定するか、逆に全て設定しないかどちらかにする"]
[null,null,null,null,null,"質量については単位が間違っていると桁が違ってしまうが重心については質量の単位に関係なく正しく求まる"]
[null,"重心(X座標)","重心(Y座標)","重心(Z座標)","質量"]
["全体の重心",{"$f":"IF( $E$7 = 0,\"\",SUM(H10:H110)/$E$7)","v":""},{"$f":"IF( $E$7 = 0,\"\",SUM(I10:I110)/$E$7)","v":""},{"$f":"IF( $E$7 = 0,\"\",SUM(J10:J110)/$E$7)","v":""},{"$f":"SUM(G10:G110)","v":0}]
[]
["ボディそれぞれの重心","重心(X座標)","重心(Y座標)","重心(Z座標)","体積","密度","質量(体積x密度)","一時計算用(重心座標*質量)"]
[null,null,null,null,null,1,{"$f":"E10*F10","v":0},{"$f":"B10*$G10","v":0},{"$f":"C10*$G10","v":0},{"$f":"D10*$G10","v":0}]
[null,null,null,null,null,1,{"$f":"E11*F11","v":0},{"$f":"B11*$G11","v":0},0,0]
[null,null,null,null,null,1,0,0,0,0]
[null,null,null,null,null,1,{"$f":"E13*F13","v":0},0,0,0]
[null,null,null,null,null,1,{"$f":"E14*F14","v":0},0,0,0]
[null,null,null,null,null,1,0,0,0,0]
[null,null,null,null,null,1,0,0,0,0]
[null,null,null,null,null,1,0,0,0,0]
[null,null,null,null,null,1,0,0,0,0]
[null,null,null,null,null,1,0,0,0,0]
[null,null,null,null,null,1,0,0,0,0]
[null,null,null,null,null,1,0,0,0,0]
[null,null,null,null,null,1,0,0,0,0]
[null,null,null,null,null,1,0,0,0,0]
[null,null,null,null,null,1,0,0,0,0]
[null,null,null,null,null,1,0,0,0,0]
[null,null,null,null,null,1,0,0,0,0]
[null,null,null,null,null,1,0,0,0,0]
[null,null,null,null,null,1,0,0,0,0]
[null,null,null,null,null,1,0,0,0,0]
[null,null,null,null,null,1,0,0,0,0]
[null,null,null,null,null,1,0,0,0,0]
[null,null,null,null,null,1,0,0,0,0]
[null,null,null,null,null,1,0,0,0,0]
[null,null,null,null,null,1,0,0,0,0]
[null,null,null,null,null,1,0,0,0,0]
[null,null,null,null,null,1,0,0,0,0]
[null,null,null,null,null,1,0,0,0,0]
[null,null,null,null,null,1,0,0,0,0]
[null,null,null,null,null,1,0,0,0,0]
[null,null,null,null,null,1,0,0,0,0]
[null,null,null,null,null,1,0,0,0,0]
[null,null,null,null,null,1,0,0,0,0]
[null,null,null,null,null,1,0,0,0,0]
[null,null,null,null,null,1,0,0,0,0]
[null,null,null,null,null,1,0,0,0,0]
[null,null,null,null,null,1,0,0,0,0]
[null,null,null,null,null,1,0,0,0,0]
[null,null,null,null,null,1,0,0,0,0]
[null,null,null,null,null,1,0,0,0,0]
[null,null,null,null,null,1,0,0,0,0]
[null,null,null,null,null,1,0,0,0,0]
[null,null,null,null,null,1,0,0,0,0]
[null,null,null,null,null,1,0,0,0,0]
[null,null,null,null,null,1,0,0,0,0]
[null,null,null,null,null,1,0,0,0,0]
[null,null,null,null,null,1,0,0,0,0]
[null,null,null,null,null,1,0,0,0,0]
[null,null,null,null,null,1,0,0,0,0]
[null,null,null,null,null,1,0,0,0,0]
[null,null,null,null,null,1,0,0,0,0]
[null,null,null,null,null,1,0,0,0,0]
[null,null,null,null,null,1,0,0,0,0]
[null,null,null,null,null,1,0,0,0,0]
[null,null,null,null,null,1,0,0,0,0]
[null,null,null,null,null,1,0,0,0,0]
[null,null,null,null,null,1,0,0,0,0]
[null,null,null,null,null,1,0,0,0,0]
[null,null,null,null,null,1,0,0,0,0]
[null,null,null,null,null,1,0,0,0,0]
[null,null,null,null,null,1,0,0,0,0]
[null,null,null,null,null,1,0,0,0,0]
[null,null,null,null,null,1,0,0,0,0]
[null,null,null,null,null,1,0,0,0,0]
[null,null,null,null,null,1,0,0,{"$f":"C74*$G74","v":0},{"$f":"D74*$G74","v":0}]
[null,null,null,null,null,1,{"$f":"E75*F75","v":0},{"$f":"B75*$G75","v":0},0,0]
[null,null,null,null,null,1,0,0,0,0]
[null,null,null,null,null,1,0,0,0,0]
[null,null,null,null,null,1,0,0,0,0]
[null,null,null,null,null,1,0,0,0,0]
[null,null,null,null,null,1,0,0,0,0]
[null,null,null,null,null,1,0,0,0,0]
[null,null,null,null,null,1,0,0,0,0]
[null,null,null,null,null,1,0,0,0,0]
[null,null,null,null,null,1,0,0,0,0]
[null,null,null,null,null,1,0,0,0,0]
[null,null,null,null,null,1,0,0,0,0]
[null,null,null,null,null,1,0,0,0,0]
[null,null,null,null,null,1,0,0,0,0]
[null,null,null,null,null,1,0,0,0,0]
[null,null,null,null,null,1,0,0,0,0]
[null,null,null,null,null,1,0,0,0,0]
[null,null,null,null,null,1,0,0,0,0]
[null,null,null,null,null,1,0,0,0,0]
[null,null,null,null,null,1,0,0,0,0]
[null,null,null,null,null,1,0,0,0,0]
[null,null,null,null,null,1,0,0,0,0]
[null,null,null,null,null,1,0,0,0,0]
[null,null,null,null,null,1,0,0,0,0]
[null,null,null,null,null,1,0,0,0,0]
[null,null,null,null,null,1,0,0,0,0]
[null,null,null,null,null,1,0,0,0,0]
[null,null,null,null,null,1,0,0,0,0]
[null,null,null,null,null,1,0,0,0,0]
[null,null,null,null,null,1,0,0,0,0]
[null,null,null,null,null,1,0,0,0,0]
[null,null,null,null,null,1,0,0,0,0]
[null,null,null,null,null,1,0,0,0,0]
[null,null,null,null,null,1,0,0,0,0]
[null,null,null,null,null,1,0,0,0,0]
[null,null,null,null,null,1,0,0,0,0]